[Event "Titled Tuesday Blitz June 13 Early 2023"]
[White "Jaracz, Pawel"]
[Black "Tarasova, Viktoriya"]
[WhiteFideId "1102222"]
[BlackFideId "4175840"]
[WhiteElo "2454"]
[BlackElo "2182"]
[Result "1-0"]
[Round "1"]
[TimeControl "180+2"]
[Date "2023.06.13"]
[WhiteClock "0:00:56"]
[BlackClock "0:00:02"]
[Board "120"]

1. e4 {[%clk 0:02:56]}  e5 {[%clk 0:02:59]} 2. Nf3 {[%clk 0:02:56]}  Nc6 {[%clk 0:02:59]} 3. Bb5 {[%clk 0:02:56]}  Nf6 {[%clk 0:02:57]} 4. d3 {[%clk 0:02:55]}  Bc5 {[%clk 0:02:56]} 5. c3 {[%clk 0:02:55]}  O-O {[%clk 0:02:55]} 6. O-O {[%clk 0:02:54]}  Re8 {[%clk 0:02:55]} 7. Nbd2 {[%clk 0:02:53]}  a6 {[%clk 0:02:56]} 8. Ba4 {[%clk 0:02:53]}  b5 {[%clk 0:02:56]} 9. Bc2 {[%clk 0:02:52]}  d6 {[%clk 0:02:54]} 10. h3 {[%clk 0:02:52]}  h6 {[%clk 0:02:54]} 11. a4 {[%clk 0:02:51]}  b4 {[%clk 0:02:24]} 12. a5 {[%clk 0:02:48]}  Bd7 {[%clk 0:02:18]} 13. Nc4 {[%clk 0:02:48]}  bxc3 {[%clk 0:02:10]} 14. bxc3 {[%clk 0:02:47]}  Ba7 {[%clk 0:02:11]} 15. Re1 {[%clk 0:02:43]}  Rb8 {[%clk 0:02:05]} 16. Ne3 {[%clk 0:02:34]}  Ne7 {[%clk 0:02:00]} 17. Bb3 {[%clk 0:02:32]}  Ng6 {[%clk 0:01:58]} 18. Bc4 {[%clk 0:02:30]}  Bb5 {[%clk 0:01:57]} 19. g3 {[%clk 0:02:19]}  Bxc4 {[%clk 0:01:55]} 20. Nxc4 {[%clk 0:02:10]}  Qd7 {[%clk 0:01:54]} 21. Kg2 {[%clk 0:02:09]}  Qc6 {[%clk 0:01:45]} 22. Be3 {[%clk 0:02:05]}  Bxe3 {[%clk 0:01:44]} 23. Nxe3 {[%clk 0:02:05]}  Rb7 {[%clk 0:01:41]} 24. c4 {[%clk 0:02:03]}  Reb8 {[%clk 0:01:41]} 25. Re2 {[%clk 0:02:00]}  Rb2 {[%clk 0:01:32]} 26. Rxb2 {[%clk 0:01:58]}  Rxb2 {[%clk 0:01:32]} 27. Rb1 {[%clk 0:01:58]}  Qb7 {[%clk 0:01:25]} 28. Rxb2 {[%clk 0:01:57]}  Qxb2 {[%clk 0:01:25]} 29. Qa4 {[%clk 0:01:56]}  Qb7 {[%clk 0:01:12]} 30. Nd5 {[%clk 0:01:52]}  c6 {[%clk 0:00:55]} 31. Nxf6+ {[%clk 0:01:50]}  gxf6 {[%clk 0:00:56]} 32. h4 {[%clk 0:01:49]}  Nf8 {[%clk 0:00:53]} 33. h5 {[%clk 0:01:47]}  Ne6 {[%clk 0:00:53]} 34. Nh4 {[%clk 0:01:47]}  Nd4 {[%clk 0:00:51]} 35. Qa3 {[%clk 0:01:35]}  c5 {[%clk 0:00:35]} 36. Qa4 {[%clk 0:01:34]}  Kf8 {[%clk 0:00:34]} 37. Nf3 {[%clk 0:01:31]}  Nxf3 {[%clk 0:00:22]} 38. Kxf3 {[%clk 0:01:32]}  Ke7 {[%clk 0:00:17]} 39. Kg2 {[%clk 0:01:29]}  Kf8 {[%clk 0:00:17]} 40. Kf3 {[%clk 0:01:27]}  Ke7 {[%clk 0:00:17]} 41. Qc2 {[%clk 0:01:20]}  Kf8 {[%clk 0:00:15]} 42. Qc1 {[%clk 0:01:18]}  Kg7 {[%clk 0:00:15]} 43. Kg2 {[%clk 0:01:18]}  Qb4 {[%clk 0:00:14]} 44. Qd1 {[%clk 0:01:12]}  Qxa5 {[%clk 0:00:11]} 45. Qg4+ {[%clk 0:01:12]}  Kh7 {[%clk 0:00:11]} 46. Qd7 {[%clk 0:01:12]}  Kg7 {[%clk 0:00:11]} 47. Qxd6 {[%clk 0:01:12]}  Qa3 {[%clk 0:00:10]} 48. f4 {[%clk 0:01:10]}  exf4 {[%clk 0:00:09]} 49. gxf4 {[%clk 0:01:11]}  Qb2+ {[%clk 0:00:07]} 50. Kf3 {[%clk 0:01:09]}  Qc2 {[%clk 0:00:06]} 51. e5 {[%clk 0:01:09]}  Qd1+ {[%clk 0:00:06]} 52. Ke4 {[%clk 0:01:08]}  Qh1+ {[%clk 0:00:06]} 53. Ke3 {[%clk 0:01:07]}  Qe1+ {[%clk 0:00:06]} 54. Kf3 {[%clk 0:01:06]}  Qf1+ {[%clk 0:00:06]} 55. Kg4 {[%clk 0:01:05]}  Qg2+ {[%clk 0:00:05]} 56. Kf5 {[%clk 0:01:03]}  Qh3+ {[%clk 0:00:05]} 57. Ke4 {[%clk 0:01:04]}  Qg2+ {[%clk 0:00:06]} 58. Ke3 {[%clk 0:01:03]}  Qg1+ {[%clk 0:00:06]} 59. Kd2 {[%clk 0:01:04]}  Qf2+ {[%clk 0:00:06]} 60. Kc3 {[%clk 0:01:03]}  Qxf4 {[%clk 0:00:04]} 61. exf6+ {[%clk 0:01:02]}  Qxf6+ {[%clk 0:00:04]} 62. Qxf6+ {[%clk 0:01:01]}  Kxf6 {[%clk 0:00:05]} 63. d4 {[%clk 0:00:58]}  cxd4+ {[%clk 0:00:05]} 64. Kxd4 {[%clk 0:00:59]}  Ke6 {[%clk 0:00:05]} 65. Kc5 {[%clk 0:01:00]}  f5 {[%clk 0:00:04]} 66. Kb6 {[%clk 0:01:00]}  f4 {[%clk 0:00:04]} 67. c5 {[%clk 0:01:00]}  f3 {[%clk 0:00:05]} 68. c6 {[%clk 0:01:01]}  f2 {[%clk 0:00:05]} 69. c7 {[%clk 0:01:01]}  Kd7 {[%clk 0:00:04]} 70. Kb7 {[%clk 0:01:01]}  f1=Q {[%clk 0:00:04]} 71. c8=Q+ {[%clk 0:01:01]}  Kd6 {[%clk 0:00:05]} 72. Qc6+ {[%clk 0:01:01]}  Ke7 {[%clk 0:00:04]} 73. Qxh6 {[%clk 0:01:01]}  Qb1+ {[%clk 0:00:04]} 74. Ka7 {[%clk 0:01:00]}  Qg1+ {[%clk 0:00:03]} 75. Kxa6 {[%clk 0:00:56]}  Qf1+ {[%clk 0:00:04]} 76. Kb6 {[%clk 0:00:56]}  Qf2+ {[%clk 0:00:04]} 77. Kc6 {[%clk 0:00:55]}  Qf3+ {[%clk 0:00:04]} 78. Kc5 {[%clk 0:00:55]}  Qf2+ {[%clk 0:00:05]} 79. Kc4 {[%clk 0:00:55]}  Qf1+ {[%clk 0:00:05]} 80. Kd4 {[%clk 0:00:55]}  Qf2+ {[%clk 0:00:05]} 81. Ke5 {[%clk 0:00:55]}  Qe1+ {[%clk 0:00:05]} 82. Kf5 {[%clk 0:00:55]}  Qf2+ {[%clk 0:00:05]} 83. Kg6 {[%clk 0:00:55]}  Qg3+ {[%clk 0:00:05]} 84. Kh7 {[%clk 0:00:55]}  Qd3+ {[%clk 0:00:06]} 85. Qg6 {[%clk 0:00:55]}  Qd4 {[%clk 0:00:05]} 86. Qg7+ {[%clk 0:00:54]}  Qxg7+ {[%clk 0:00:05]} 87. Kxg7 {[%clk 0:00:55]}  Ke6 {[%clk 0:00:02]} 88. h6 {[%clk 0:00:56]} 1-0


[Site "https://www.chess.com"]

[Event "Titled Tuesday Blitz June 13 Early 2023"]
[White "Lacasa Diaz, Jose Antonio"]
[Black "Itgelt, Khuyagtsogt"]
[WhiteFideId "2203375"]
[BlackFideId "4902912"]
[WhiteElo "2338"]
[BlackElo "2227"]
[Result "0-1"]
[Round "1"]
[TimeControl "180+2"]
[Date "2023.06.13"]
[WhiteClock "0:00:13"]
[BlackClock "0:00:31"]
[Board "121"]

1. c4 {[%clk 0:02:55]}  Nf6 {[%clk 0:02:54]} 2. Nc3 {[%clk 0:02:54]}  g6 {[%clk 0:02:52]} 3. e4 {[%clk 0:02:54]}  e5 {[%clk 0:02:51]} 4. Nf3 {[%clk 0:02:51]}  Bg7 {[%clk 0:02:51]} 5. g3 {[%clk 0:02:39]}  O-O {[%clk 0:02:50]} 6. Bg2 {[%clk 0:02:39]}  d6 {[%clk 0:02:48]} 7. O-O {[%clk 0:02:38]}  Bg4 {[%clk 0:02:47]} 8. h3 {[%clk 0:02:32]}  Bxf3 {[%clk 0:02:46]} 9. Bxf3 {[%clk 0:02:29]}  Nc6 {[%clk 0:02:47]} 10. Bg2 {[%clk 0:02:29]}  Nd7 {[%clk 0:02:40]} 11. d3 {[%clk 0:02:25]}  Nd4 {[%clk 0:02:37]} 12. b4 {[%clk 0:02:18]}  a5 {[%clk 0:02:35]} 13. b5 {[%clk 0:02:16]}  Nc5 {[%clk 0:02:31]} 14. Be3 {[%clk 0:02:16]}  Qd7 {[%clk 0:02:25]} 15. Rb1 {[%clk 0:02:10]}  Rae8 {[%clk 0:02:18]} 16. Bxd4 {[%clk 0:02:07]}  exd4 {[%clk 0:02:19]} 17. Nd5 {[%clk 0:02:07]}  f5 {[%clk 0:02:16]} 18. exf5 {[%clk 0:02:01]}  Rxf5 {[%clk 0:02:12]} 19. Qd2 {[%clk 0:01:54]}  c6 {[%clk 0:02:02]} 20. Nb6 {[%clk 0:01:31]}  Qc7 {[%clk 0:01:50]} 21. bxc6 {[%clk 0:01:14]}  bxc6 {[%clk 0:01:51]} 22. Qxa5 {[%clk 0:00:49]}  Nxd3 {[%clk 0:01:22]} 23. Qa4 {[%clk 0:00:43]}  Rc5 {[%clk 0:01:00]} 24. Nd5 {[%clk 0:00:20]}  Qf7 {[%clk 0:00:45]} 25. Qa3 {[%clk 0:00:16]}  Ne5 {[%clk 0:00:38]} 26. Nf4 {[%clk 0:00:14]}  Nxc4 {[%clk 0:00:35]} 27. Qb3 {[%clk 0:00:13]}  Nd2 {[%clk 0:00:31]} 0-1


[Site "https://www.chess.com"]

[Event "Titled Tuesday Blitz June 13 Early 2023"]
[White "Melikhov, Evgeny V."]
[Black "Timerkhanov, Alexander"]
[WhiteFideId "4122046"]
[BlackFideId "24177938"]
[WhiteElo "2158"]
[BlackElo "2278"]
[Result "0-1"]
[Round "1"]
[TimeControl "180+2"]
[Date "2023.06.13"]
[WhiteClock "0:00:32"]
[BlackClock "0:00:43"]
[Board "123"]

1. d4 {[%clk 0:02:58]}  d5 {[%clk 0:02:58]} 2. c4 {[%clk 0:02:57]}  e6 {[%clk 0:02:58]} 3. Nc3 {[%clk 0:02:57]}  h6 {[%clk 0:02:56]} 4. cxd5 {[%clk 0:02:57]}  exd5 {[%clk 0:02:55]} 5. Bf4 {[%clk 0:02:56]}  Nf6 {[%clk 0:02:55]} 6. e3 {[%clk 0:02:55]}  Bd6 {[%clk 0:02:55]} 7. Bxd6 {[%clk 0:02:55]}  Qxd6 {[%clk 0:02:56]} 8. Bd3 {[%clk 0:02:53]}  O-O {[%clk 0:02:55]} 9. Qc2 {[%clk 0:02:50]}  a6 {[%clk 0:02:46]} 10. Nf3 {[%clk 0:02:49]}  c6 {[%clk 0:02:41]} 11. O-O {[%clk 0:02:46]}  Nbd7 {[%clk 0:02:39]} 12. Rab1 {[%clk 0:02:42]}  a5 {[%clk 0:02:37]} 13. a3 {[%clk 0:02:37]}  Re8 {[%clk 0:02:36]} 14. b4 {[%clk 0:02:36]}  axb4 {[%clk 0:02:36]} 15. axb4 {[%clk 0:02:36]}  b5 {[%clk 0:02:36]} 16. Bxb5 {[%clk 0:02:26]}  cxb5 {[%clk 0:02:27]} 17. Nxb5 {[%clk 0:02:26]}  Qb6 {[%clk 0:02:02]} 18. Nc7 {[%clk 0:02:26]}  Ba6 {[%clk 0:02:01]} 19. Nxa8 {[%clk 0:02:21]}  Rxa8 {[%clk 0:01:59]} 20. Rfc1 {[%clk 0:02:20]}  Bc4 {[%clk 0:01:56]} 21. Nd2 {[%clk 0:02:17]}  Rc8 {[%clk 0:01:56]} 22. Nxc4 {[%clk 0:02:16]}  dxc4 {[%clk 0:01:57]} 23. Qa4 {[%clk 0:02:12]}  Nf8 {[%clk 0:01:48]} 24. b5 {[%clk 0:02:09]}  c3 {[%clk 0:01:48]} 25. Rb3 {[%clk 0:02:00]}  Ne4 {[%clk 0:01:47]} 26. f3 {[%clk 0:01:49]}  Nd6 {[%clk 0:01:12]} 27. Rbxc3 {[%clk 0:01:48]}  Rb8 {[%clk 0:00:57]} 28. Rc6 {[%clk 0:01:45]}  Qd8 {[%clk 0:00:56]} 29. b6 {[%clk 0:01:29]}  Ne6 {[%clk 0:00:52]} 30. Qb4 {[%clk 0:01:21]}  Nf5 {[%clk 0:00:51]} 31. b7 {[%clk 0:01:16]}  Ne7 {[%clk 0:00:49]} 32. Qxe7 {[%clk 0:01:06]}  Qxe7 {[%clk 0:00:48]} 33. Rc8+ {[%clk 0:01:07]}  Nd8 {[%clk 0:00:49]} 34. Rxb8 {[%clk 0:01:06]}  Qxe3+ {[%clk 0:00:48]} 35. Kf1 {[%clk 0:01:05]}  Qxc1+ {[%clk 0:00:49]} 36. Kf2 {[%clk 0:01:05]}  Qc7 {[%clk 0:00:46]} 37. Rc8 {[%clk 0:01:04]}  Qxb7 {[%clk 0:00:46]} 38. Rxd8+ {[%clk 0:01:05]}  Kh7 {[%clk 0:00:47]} 39. Re8 {[%clk 0:00:51]}  Qb4 {[%clk 0:00:47]} 40. Re4 {[%clk 0:00:50]}  f5 {[%clk 0:00:46]} 41. Re2 {[%clk 0:00:44]}  Qxd4+ {[%clk 0:00:46]} 42. Kf1 {[%clk 0:00:44]}  g5 {[%clk 0:00:45]} 43. g3 {[%clk 0:00:43]}  Qc4 {[%clk 0:00:44]} 44. Kf2 {[%clk 0:00:43]}  Kg6 {[%clk 0:00:44]} 45. h3 {[%clk 0:00:43]}  h5 {[%clk 0:00:44]} 46. Kg2 {[%clk 0:00:41]}  h4 {[%clk 0:00:44]} 47. Rf2 {[%clk 0:00:38]}  Qc7 {[%clk 0:00:43]} 48. f4 {[%clk 0:00:36]}  Qc6+ {[%clk 0:00:43]} 49. Kh2 {[%clk 0:00:37]}  Qc3 {[%clk 0:00:42]} 50. Rg2 {[%clk 0:00:34]}  hxg3+ {[%clk 0:00:42]} 51. Rxg3 {[%clk 0:00:32]}  Qd2+ {[%clk 0:00:43]} 0-1


[Site "https://www.chess.com"]

[Event "Titled Tuesday Blitz June 13 Early 2023"]
[White "Souleidis, Georgios"]
[Black "Mouhamad, Joachim"]
[WhiteFideId "4206827"]
[BlackFideId "656410"]
[WhiteElo "2401"]
[BlackElo "2125"]
[Result "1-0"]
[Round "1"]
[TimeControl "180+2"]
[Date "2023.06.13"]
[WhiteClock "0:00:59"]
[BlackClock "0:00:59"]
[Board "124"]

1. e4 {[%clk 0:02:59]}  c5 {[%clk 0:02:59]} 2. Be2 {[%clk 0:02:58]}  Nc6 {[%clk 0:02:59]} 3. d3 {[%clk 0:02:58]}  g6 {[%clk 0:02:58]} 4. f4 {[%clk 0:02:59]}  Bg7 {[%clk 0:02:58]} 5. Nf3 {[%clk 0:03:00]}  e6 {[%clk 0:02:50]} 6. O-O {[%clk 0:03:00]}  Nge7 {[%clk 0:02:49]} 7. c3 {[%clk 0:03:01]}  Rb8 {[%clk 0:02:47]} 8. Be3 {[%clk 0:03:00]}  d6 {[%clk 0:02:44]} 9. d4 {[%clk 0:02:59]}  cxd4 {[%clk 0:02:41]} 10. cxd4 {[%clk 0:02:59]}  Qb6 {[%clk 0:02:40]} 11. Qd2 {[%clk 0:02:56]}  d5 {[%clk 0:02:38]} 12. e5 {[%clk 0:02:55]}  Nf5 {[%clk 0:02:37]} 13. Bf2 {[%clk 0:02:55]}  h5 {[%clk 0:02:37]} 14. Nc3 {[%clk 0:02:55]}  a6 {[%clk 0:02:33]} 15. Na4 {[%clk 0:02:54]}  Qd8 {[%clk 0:02:29]} 16. Rac1 {[%clk 0:02:53]}  Bd7 {[%clk 0:02:27]} 17. Nc5 {[%clk 0:02:53]}  O-O {[%clk 0:02:26]} 18. b4 {[%clk 0:02:52]}  Na7 {[%clk 0:02:20]} 19. a4 {[%clk 0:02:48]}  Qe8 {[%clk 0:02:19]} 20. Ra1 {[%clk 0:02:31]}  Nc8 {[%clk 0:02:18]} 21. Rfc1 {[%clk 0:02:12]}  Nb6 {[%clk 0:02:18]} 22. a5 {[%clk 0:02:04]}  Nc8 {[%clk 0:02:14]} 23. Bd3 {[%clk 0:01:56]}  Na7 {[%clk 0:02:11]} 24. Bxf5 {[%clk 0:01:55]}  exf5 {[%clk 0:02:12]} 25. Bh4 {[%clk 0:01:55]}  Nc6 {[%clk 0:02:07]} 26. Re1 {[%clk 0:01:49]}  Be6 {[%clk 0:02:04]} 27. Rac1 {[%clk 0:01:44]}  Bh6 {[%clk 0:01:59]} 28. Bg5 {[%clk 0:01:43]}  Bxg5 {[%clk 0:01:57]} 29. Nxg5 {[%clk 0:01:44]}  Qe7 {[%clk 0:01:51]} 30. Nxa6 {[%clk 0:01:37]}  Nxa5 {[%clk 0:01:38]} 31. Nxb8 {[%clk 0:01:32]}  Nc4 {[%clk 0:01:37]} 32. Rxc4 {[%clk 0:01:15]}  dxc4 {[%clk 0:01:37]} 33. d5 {[%clk 0:01:16]}  Rd8 {[%clk 0:01:30]} 34. d6 {[%clk 0:01:14]}  Qf8 {[%clk 0:01:19]} 35. Nxe6 {[%clk 0:01:08]}  fxe6 {[%clk 0:01:19]} 36. Qd4 {[%clk 0:01:06]}  Rxb8 {[%clk 0:01:17]} 37. Qxc4 {[%clk 0:01:06]}  Qf7 {[%clk 0:01:07]} 38. Rc1 {[%clk 0:01:06]}  Rd8 {[%clk 0:01:06]} 39. b5 {[%clk 0:01:05]}  Kg7 {[%clk 0:01:05]} 40. b6 {[%clk 0:01:04]}  Rd7 {[%clk 0:01:05]} 41. Qc8 {[%clk 0:01:01]}  g5 {[%clk 0:01:04]} 42. Qxd7 {[%clk 0:01:00]}  Qxd7 {[%clk 0:00:59]} 43. Rc7 {[%clk 0:00:59]} 1-0


[Site "https://www.chess.com"]

[Event "Titled Tuesday Blitz June 13 Early 2023"]
[White "Goswami, Vedant"]
[Black "Radzhabov, Rodion"]
[WhiteFideId "5003725"]
[BlackFideId "884715"]
[WhiteElo "2011"]
[BlackElo "2174"]
[Result "0-1"]
[Round "1"]
[TimeControl "180+2"]
[Date "2023.06.13"]
[WhiteClock "0:00:38"]
[BlackClock "0:00:06"]
[Board "125"]

1. d4 {[%clk 0:03:00]}  Nf6 {[%clk 0:02:57]} 2. Bg5 {[%clk 0:02:58]}  e6 {[%clk 0:02:55]} 3. e3 {[%clk 0:02:57]}  c5 {[%clk 0:02:53]} 4. Nd2 {[%clk 0:02:56]}  b6 {[%clk 0:02:46]} 5. Qf3 {[%clk 0:02:50]}  Nc6 {[%clk 0:02:41]} 6. Bxf6 {[%clk 0:02:46]}  Qxf6 {[%clk 0:02:39]} 7. Qxf6 {[%clk 0:02:45]}  gxf6 {[%clk 0:02:39]} 8. c3 {[%clk 0:02:43]}  Bb7 {[%clk 0:02:36]} 9. Ngf3 {[%clk 0:02:40]}  Rg8 {[%clk 0:02:17]} 10. g3 {[%clk 0:02:36]}  O-O-O {[%clk 0:01:53]} 11. Bd3 {[%clk 0:02:27]}  f5 {[%clk 0:01:46]} 12. O-O-O {[%clk 0:02:14]}  Kc7 {[%clk 0:01:35]} 13. Rhe1 {[%clk 0:02:13]}  Bh6 {[%clk 0:01:19]} 14. Kb1 {[%clk 0:02:10]}  d5 {[%clk 0:01:16]} 15. Bb5 {[%clk 0:02:04]}  f6 {[%clk 0:01:08]} 16. Nb3 {[%clk 0:01:57]}  c4 {[%clk 0:01:08]} 17. Nbd2 {[%clk 0:01:56]}  a6 {[%clk 0:00:59]} 18. Ba4 {[%clk 0:01:53]}  b5 {[%clk 0:00:58]} 19. Bc2 {[%clk 0:01:52]}  a5 {[%clk 0:00:55]} 20. Nh4 {[%clk 0:01:52]}  b4 {[%clk 0:00:51]} 21. Ng2 {[%clk 0:01:49]}  Rb8 {[%clk 0:00:40]} 22. Ka1 {[%clk 0:01:48]}  Bc8 {[%clk 0:00:33]} 23. Ba4 {[%clk 0:01:46]}  Bd7 {[%clk 0:00:32]} 24. Nf4 {[%clk 0:01:44]}  Kd6 {[%clk 0:00:29]} 25. Nf3 {[%clk 0:01:36]}  Rb6 {[%clk 0:00:23]} 26. Nh5 {[%clk 0:01:32]}  Rf8 {[%clk 0:00:16]} 27. Re2 {[%clk 0:01:30]}  Be8 {[%clk 0:00:15]} 28. Nf4 {[%clk 0:01:30]}  Bf7 {[%clk 0:00:07]} 29. h3 {[%clk 0:01:30]}  Rfb8 {[%clk 0:00:07]} 30. Rde1 {[%clk 0:01:29]}  e5 {[%clk 0:00:07]} 31. Ng2 {[%clk 0:01:19]}  Bh5 {[%clk 0:00:06]} 32. Nfh4 {[%clk 0:01:14]}  Bxe2 {[%clk 0:00:06]} 33. Rxe2 {[%clk 0:01:14]}  bxc3 {[%clk 0:00:06]} 34. Nxf5+ {[%clk 0:01:10]}  Ke6 {[%clk 0:00:07]} 35. Nxh6 {[%clk 0:01:08]}  Rxb2 {[%clk 0:00:07]} 36. Rxb2 {[%clk 0:01:07]}  cxb2+ {[%clk 0:00:07]} 37. Kb1 {[%clk 0:01:06]}  Nb4 {[%clk 0:00:07]} 38. Ne1 {[%clk 0:01:01]}  c3 {[%clk 0:00:07]} 39. Bc2 {[%clk 0:00:59]}  e4 {[%clk 0:00:04]} 40. Ng4 {[%clk 0:00:57]}  Nc6 {[%clk 0:00:02]} 41. h4 {[%clk 0:00:54]}  h5 {[%clk 0:00:03]} 42. Nh2 {[%clk 0:00:53]}  a4 {[%clk 0:00:03]} 43. a3 {[%clk 0:00:52]}  Na5 {[%clk 0:00:03]} 44. Nf1 {[%clk 0:00:49]}  Nc4 {[%clk 0:00:04]} 45. Ka2 {[%clk 0:00:47]}  Nd2 {[%clk 0:00:04]} 46. Nxd2 {[%clk 0:00:41]}  cxd2 {[%clk 0:00:05]} 47. Ng2 {[%clk 0:00:41]}  b1=Q+ {[%clk 0:00:06]} 48. Bxb1 {[%clk 0:00:38]}  d1=Q {[%clk 0:00:06]} 0-1


[Site "https://www.chess.com"]

[Event "Titled Tuesday Blitz June 13 Early 2023"]
[White "Alex_Sahakyan2006"]
[Black "Mejia, Cherry Ann"]
[BlackFideId "5206880"]
[WhiteElo "2671"]
[BlackElo "2007"]
[Result "1-0"]
[Round "1"]
[TimeControl "180+2"]
[Date "2023.06.13"]
[WhiteClock "0:01:25"]
[BlackClock "0:00:00"]
[Board "126"]

1. Nf3 {[%clk 0:02:58]}  d5 {[%clk 0:02:58]} 2. g3 {[%clk 0:02:57]}  c5 {[%clk 0:02:57]} 3. Bg2 {[%clk 0:02:56]}  Nc6 {[%clk 0:02:05]} 4. O-O {[%clk 0:02:53]}  e5 {[%clk 0:02:04]} 5. d3 {[%clk 0:02:53]}  Nf6 {[%clk 0:02:03]} 6. Nbd2 {[%clk 0:02:47]}  Be7 {[%clk 0:02:02]} 7. e4 {[%clk 0:02:48]}  O-O {[%clk 0:02:00]} 8. Qe2 {[%clk 0:02:45]}  d4 {[%clk 0:01:59]} 9. Nc4 {[%clk 0:02:44]}  Qc7 {[%clk 0:01:59]} 10. a4 {[%clk 0:02:44]}  b6 {[%clk 0:01:56]} 11. Nh4 {[%clk 0:02:30]}  Be6 {[%clk 0:01:51]} 12. b3 {[%clk 0:02:28]}  a6 {[%clk 0:01:51]} 13. f4 {[%clk 0:02:26]}  b5 {[%clk 0:01:46]} 14. Nxe5 {[%clk 0:02:24]}  Nxe5 {[%clk 0:01:44]} 15. fxe5 {[%clk 0:02:25]}  Nd7 {[%clk 0:01:45]} 16. Nf5 {[%clk 0:02:21]}  Nxe5 {[%clk 0:01:41]} 17. Bf4 {[%clk 0:02:11]}  Bf6 {[%clk 0:01:39]} 18. g4 {[%clk 0:02:05]}  Bxf5 {[%clk 0:01:33]} 19. exf5 {[%clk 0:01:57]}  Rae8 {[%clk 0:01:32]} 20. axb5 {[%clk 0:01:52]}  axb5 {[%clk 0:01:29]} 21. g5 {[%clk 0:01:50]}  Bd8 {[%clk 0:01:27]} 22. Rfe1 {[%clk 0:01:30]}  f6 {[%clk 0:01:26]} 23. Bd5+ {[%clk 0:01:28]}  Kh8 {[%clk 0:01:26]} 24. g6 {[%clk 0:01:28]}  h6 {[%clk 0:00:00]} 25. Qh5 {[%clk 0:01:25]} 1-0


[Site "https://www.chess.com"]

[Event "Titled Tuesday Blitz June 13 Early 2023"]
[White "Ashraf, Artin"]
[Black "Stalri"]
[WhiteFideId "22514805"]
[WhiteElo "2224"]
[BlackElo "2369"]
[Result "1-0"]
[Round "1"]
[TimeControl "180+2"]
[Date "2023.06.13"]
[WhiteClock "0:00:14"]
[BlackClock "0:00:50"]
[Board "130"]

1. Nf3 {[%clk 0:02:56]}  Nf6 {[%clk 0:02:59]} 2. d4 {[%clk 0:02:53]}  g6 {[%clk 0:02:53]} 3. Bg5 {[%clk 0:02:52]}  Bg7 {[%clk 0:02:52]} 4. Nbd2 {[%clk 0:02:50]}  d5 {[%clk 0:02:52]} 5. e3 {[%clk 0:02:41]}  O-O {[%clk 0:02:50]} 6. Bd3 {[%clk 0:02:39]}  c5 {[%clk 0:02:47]} 7. c3 {[%clk 0:02:38]}  Nc6 {[%clk 0:02:46]} 8. O-O {[%clk 0:02:29]}  h6 {[%clk 0:02:28]} 9. Bxf6 {[%clk 0:02:18]}  Bxf6 {[%clk 0:02:25]} 10. dxc5 {[%clk 0:02:18]}  a5 {[%clk 0:02:23]} 11. a4 {[%clk 0:02:09]}  e5 {[%clk 0:02:19]} 12. e4 {[%clk 0:02:08]}  Be6 {[%clk 0:02:04]} 13. exd5 {[%clk 0:01:58]}  Qxd5 {[%clk 0:02:01]} 14. Bc4 {[%clk 0:01:31]}  Qxc5 {[%clk 0:01:33]} 15. Bxe6 {[%clk 0:01:27]}  fxe6 {[%clk 0:01:34]} 16. Ne4 {[%clk 0:01:28]}  Qd5 {[%clk 0:01:35]} 17. Qc2 {[%clk 0:01:22]}  Be7 {[%clk 0:01:31]} 18. Rfd1 {[%clk 0:00:37]}  Qc4 {[%clk 0:01:31]} 19. b3 {[%clk 0:00:35]}  Qa6 {[%clk 0:01:24]} 20. Nc5 {[%clk 0:00:32]}  Bxc5 {[%clk 0:01:17]} 21. Qxg6+ {[%clk 0:00:31]}  Kh8 {[%clk 0:01:18]} 22. Qxh6+ {[%clk 0:00:22]}  Kg8 {[%clk 0:01:18]} 23. Qg6+ {[%clk 0:00:19]}  Kh8 {[%clk 0:01:18]} 24. Ng5 {[%clk 0:00:17]}  Bxf2+ {[%clk 0:00:50]} 25. Kh1 {[%clk 0:00:14]} 1-0


[Site "https://www.chess.com"]

[Event "Titled Tuesday Blitz June 13 Early 2023"]
[White "sebastianmarinp"]
[Black "Manukyan, Sargis V."]
[BlackFideId "13303465"]
[WhiteElo "2365"]
[BlackElo "2236"]
[Result "0-1"]
[Round "1"]
[TimeControl "180+2"]
[Date "2023.06.13"]
[WhiteClock "0:00:00"]
[BlackClock "0:00:04"]
[Board "131"]

1. e4 {[%clk 0:02:59]}  e6 {[%clk 0:02:48]} 2. d4 {[%clk 0:02:58]}  d5 {[%clk 0:02:47]} 3. Nc3 {[%clk 0:02:58]}  Bb4 {[%clk 0:02:46]} 4. e5 {[%clk 0:02:58]}  c5 {[%clk 0:02:46]} 5. a3 {[%clk 0:02:58]}  Bxc3+ {[%clk 0:02:46]} 6. bxc3 {[%clk 0:02:59]}  Ne7 {[%clk 0:02:39]} 7. a4 {[%clk 0:02:58]}  Nbc6 {[%clk 0:02:33]} 8. Nf3 {[%clk 0:02:58]}  O-O {[%clk 0:02:22]} 9. Bd3 {[%clk 0:02:43]}  h6 {[%clk 0:02:11]} 10. O-O {[%clk 0:02:31]}  c4 {[%clk 0:02:03]} 11. Be2 {[%clk 0:02:30]}  f6 {[%clk 0:02:03]} 12. exf6 {[%clk 0:02:15]}  Rxf6 {[%clk 0:02:02]} 13. Nh4 {[%clk 0:01:56]}  Bd7 {[%clk 0:01:49]} 14. Bg4 {[%clk 0:01:45]}  Ng6 {[%clk 0:01:25]} 15. Nxg6 {[%clk 0:01:19]}  Rxg6 {[%clk 0:01:25]} 16. Bf4 {[%clk 0:01:11]}  Rxg4 {[%clk 0:01:08]} 17. Qxg4 {[%clk 0:01:11]}  e5 {[%clk 0:01:07]} 18. Qh5 {[%clk 0:01:02]}  exf4 {[%clk 0:00:59]} 19. Qxd5+ {[%clk 0:01:03]}  Kh8 {[%clk 0:00:45]} 20. Qxc4 {[%clk 0:01:02]}  f3 {[%clk 0:00:41]} 21. g3 {[%clk 0:00:58]}  Qg5 {[%clk 0:00:36]} 22. Rfe1 {[%clk 0:00:47]}  Rf8 {[%clk 0:00:22]} 23. Re3 {[%clk 0:00:30]}  Bh3 {[%clk 0:00:18]} 24. Rb1 {[%clk 0:00:22]}  Qh5 {[%clk 0:00:11]} 25. Qc5 {[%clk 0:00:19]}  Rf5 {[%clk 0:00:06]} 26. Qd6 {[%clk 0:00:13]}  Bg2 {[%clk 0:00:05]} 27. Rbe1 {[%clk 0:00:00]}  Qxh2+ {[%clk 0:00:04]} 0-1


[Site "https://www.chess.com"]